fUST/lending_fUST_20250302
["ID","MTS","AMOUNT","RATE_DAILY","PERIOD"]
[354991651,1740858646003,-508.74774967,0.00024931,2]
[354991652,1740858646015,-1086.1,0.00024931,2]
[354991653,1740858646027,-500.0,0.00024967,2]
[354991654,1740858646039,-268.94309264,0.00024967,2]
[354991655,1740858646051,-13682.53,0.00024967,2]
[354991656,1740858646062,-1234.23,0.00024967,2]
[354991657,1740858646074,-500.0,0.00024973,2]
[354991658,1740858646086,-479.24,0.00025,2]
[354991659,1740858646098,-6666.66666667,0.00025,2]
[354991660,1740858646110,-3999.99,0.00025,2]
[354991661,1740858646121,-6627.41,0.00025,2]
[354991662,1740858646136,-151.0,0.00025,7]
[354991663,1740858646147,-6333.36,0.00025,2]
[354991664,1740858646159,-687.34,0.00025067,2]
[354991665,1740858646170,-500.0,0.00025067,2]
[354991666,1740858646182,-500.0,0.00025067,2]
[354991667,1740858646193,-500.0,0.00025067,2]
[354991668,1740858646205,-500.0,0.00025067,2]
[354991669,1740858646216,-500.0,0.00025067,2]
[354991670,1740858646230,-500.0,0.00025067,2]
[354991671,1740858646241,-500.0,0.00025067,2]
[354991672,1740858646253,-805.18,0.00025067,2]
[354991673,1740858646264,-500.0,0.00025067,2]
[354991674,1740858646276,-500.0,0.00025067,2]
[354991675,1740858646287,-500.0,0.00025067,2]
[354991676,1740858646299,-500.0,0.00025067,2]
[354991677,1740858646311,-511.17,0.00025067,2]
[354991678,1740858646323,-500.0,0.00025067,2]
[354991679,1740858646334,-484.52555655,0.00025067,2]
[354991680,1740858646345,-500.0,0.00025067,2]
[354991681,1740858646356,-500.0,0.00025067,2]
[354991682,1740858646368,-918.32,0.00025067,2]
[354991683,1740858646379,-500.0,0.00025067,2]
[354991684,1740858646391,-320.22280286,0.00025067,2]
[354991685,1740858646402,-500.0,0.00025067,2]
[354991686,1740858646414,-500.0,0.00025067,2]
[354991687,1740858646426,-297.94138301,0.00025067,2]
[354991688,1740858646437,-500.0,0.00025067,2]
[354991689,1740858646449,-500.0,0.00025067,2]
[354991690,1740858646461,-500.0,0.00025067,2]
[354991691,1740858646472,-500.0,0.00025067,2]
[354991692,1740858646484,-500.0,0.00025067,2]
[354991693,1740858646497,-500.0,0.00025067,2]
[354991694,1740858646508,-500.0,0.00025067,2]
[354991696,1740858646520,-500.0,0.00025067,2]
[354991698,1740858646531,-500.0,0.00025067,2]
[354991700,1740858646542,-500.0,0.00025067,2]
[354991702,1740858646553,-500.0,0.00025067,2]
[354991705,1740858646564,-242.72869644,0.00025067,2]
[354991707,1740858646575,-500.0,0.00025067,2]
[354991709,1740858646587,-500.0,0.00025067,2]
[354991711,1740858646598,-541.24,0.00025067,2]
[354991713,1740858646610,-695.72,0.00025067,2]
[354991715,1740858646621,-500.0,0.00025067,2]
[354991718,1740858646632,-947.0,0.00025067,2]
[354991720,1740858646643,-500.0,0.00025067,2]
[354991722,1740858646655,-588.4,0.00025067,2]
[354991724,1740858646666,-851.85,0.00025067,2]
[354991726,1740858646678,-872.39,0.00025067,2]
[354991729,1740858646690,-500.0,0.00025067,2]
[354991731,1740858646701,-1385.04,0.00025067,2]
[354991733,1740858646713,-500.0,0.00025067,2]
[354991735,1740858646725,-500.0,0.00025067,2]
[354991737,1740858646736,-1229.21,0.00025067,2]
[354991739,1740858646747,-500.0,0.00025067,2]
[354991742,1740858646758,-814.39,0.00025067,2]
[354991744,1740858646770,-500.0,0.00025067,2]
[354991746,1740858646782,-1172.15,0.00025067,2]
[354991748,1740858646793,-500.0,0.00025067,2]
[354991750,1740858646805,-587.83,0.00025067,2]
[354991753,1740858646816,-500.0,0.00025067,2]
[354991755,1740858646828,-500.0,0.00025067,2]
[354991757,1740858646839,-901.51,0.00025067,2]
[354991759,1740858646850,-500.0,0.00025067,2]
[354991761,1740858646862,-500.0,0.00025067,2]
[354991764,1740858646873,-500.0,0.00025067,2]
[354991766,1740858646885,-500.0,0.00025067,2]
[354991768,1740858646897,-536.81,0.00025067,2]
[354991770,1740858646909,-500.0,0.00025067,2]
[354991772,1740858646920,-500.0,0.00025067,2]
[354991774,1740858646932,-963.78,0.00025067,2]
[354991777,1740858646943,-975.4,0.00025067,2]
[354991779,1740858646954,-500.0,0.00025067,2]
[354991781,1740858646966,-500.0,0.00025067,2]
[354991783,1740858646984,-500.0,0.00025067,2]
[354991785,1740858646995,-500.0,0.00025067,2]
[354991788,1740858647006,-2108.74,0.00025067,2]
[354991790,1740858647018,-500.0,0.00025067,2]
[354991792,1740858647037,-500.0,0.00025067,2]
[354991794,1740858647049,-500.0,0.00025067,2]
[354991797,1740858647060,-1421.5,0.00025067,2]
[354991799,1740858647071,-500.0,0.00025067,2]
[354991801,1740858647082,-1612.04,0.00025067,2]
[354991803,1740858647093,-651.14,0.00025067,2]
[354991805,1740858647104,-500.0,0.00025067,2]
[354991807,1740858647115,-500.0,0.00025067,2]
[354991809,1740858647125,-500.0,0.00025067,2]
[354991812,1740858647136,-500.0,0.00025067,2]
[354991814,1740858647147,-769.69,0.00025067,2]
[354991816,1740858647158,-500.0,0.00025067,2]
[354991818,1740858647169,-500.0,0.00025067,2]
[354991820,1740858647180,-500.0,0.00025067,2]
[354991822,1740858647192,-500.0,0.00025067,2]
[354991824,1740858647202,-1982.33,0.00025067,2]
[354991827,1740858647214,-549.29,0.00025067,2]
[354991829,1740858647227,-500.0,0.00025067,2]
[354991831,1740858647238,-500.0,0.00025067,2]
[354991833,1740858647249,-500.0,0.00025067,2]
[354991835,1740858647260,-500.0,0.00025067,2]
[354991837,1740858647271,-500.0,0.00025067,2]
[354991839,1740858647281,-666.88,0.00025067,2]
[354991842,1740858647294,-500.0,0.00025067,2]
[354991844,1740858647305,-641.19,0.00025067,2]
[354991846,1740858647318,-500.0,0.00025067,2]
[354991848,1740858647330,-500.0,0.00025067,2]
[354991850,1740858647341,-708.0,0.00025067,2]
[354991852,1740858647352,-500.0,0.00025067,2]
[354991855,1740858647363,-572.68,0.00025067,2]
[354991857,1740858647375,-521.68,0.00025067,2]
[354991859,1740858647386,-617.2,0.00025067,2]
[354991861,1740858647396,-803.1,0.00025067,2]
[354991863,1740858647408,-1057.58,0.00025067,2]
[354991865,1740858647418,-500.0,0.00025067,2]
[354991867,1740858647429,-1355.33,0.00025067,2]
[354991870,1740858647440,-500.0,0.00025067,2]
[354991872,1740858647451,-500.0,0.00025067,2]
[354991874,1740858647462,-500.0,0.00025067,2]
[354991876,1740858647473,-3489.02,0.00025067,2]
[354991878,1740858647485,-784.69,0.00025067,2]
[354991880,1740858647497,-500.0,0.00025067,2]
[354991883,1740858647508,-976.41,0.00025067,2]
[354991885,1740858647519,-512.16,0.00025067,2]
[354991887,1740858647530,-500.0,0.00025067,2]
[354991889,1740858647541,-500.0,0.00025067,2]
[354991891,1740858647552,-500.0,0.00025067,2]
[354991893,1740858647563,-500.0,0.00025067,2]
[354991896,1740858647574,-500.0,0.00025067,2]
[354991898,1740858647584,-500.0,0.00025067,2]
[354991900,1740858647596,-500.0,0.00025067,2]
[354991902,1740858647608,-940.17,0.00025067,2]
[354991904,1740858647619,-1131.28,0.00025067,2]
[354991907,1740858647630,-500.0,0.00025067,2]
[354991909,1740858647642,-500.0,0.00025071,2]
[354991911,1740858647653,-500.0,0.00025071,2]
[354991913,1740858647665,-1001.65,0.00025071,2]
[354991915,1740858647676,-411.68283425,0.00025071,2]
[354991917,1740858647688,-500.0,0.00025071,2]
[354991920,1740858647699,-500.0,0.00025071,2]
[354991922,1740858647711,-1940.07,0.00025071,2]
[354991924,1740858647722,-1053.94,0.00025071,2]
[354991926,1740858647733,-151.0,0.000251,14]
[354991928,1740858647745,-151.0,0.000251,17]
[354991931,1740858647756,-500.0,0.00025205,2]
[354991933,1740858647768,-500.0,0.00025205,2]
[354991935,1740858647780,-500.0,0.00025205,2]
[354991937,1740858647791,-500.0,0.00025205,2]
[354991939,1740858647802,-1356.93,0.00025205,2]
[354991942,1740858647815,-604.9,0.00025205,2]
[354991944,1740858647826,-500.0,0.00025205,2]
[354991946,1740858647838,-500.0,0.00025205,2]
[354991948,1740858647848,-1229.49,0.00025205,2]
[354991950,1740858647859,-500.0,0.00025205,2]
[354991953,1740858647871,-500.0,0.00025205,2]
[354991955,1740858647883,-500.0,0.00025205,2]
[354991957,1740858647894,-1294.44,0.00025205,2]
[354991959,1740858647905,-859.51,0.00025205,2]
[354991961,1740858647917,-543.15803936,0.00025205,2]
[354991964,1740858647929,-875.13,0.00025205,2]
[354991966,1740858647940,-500.0,0.00025205,2]
[354991968,1740858647951,-814.68,0.00025205,2]
[354991970,1740858647963,-949.73,0.00025205,2]
[354991972,1740858647974,-1425.19,0.00025205,2]
[354992015,1740858648392,-872.86,0.00025205,2]
[354992019,1740858648424,-511.33,0.00025205,2]
[354992022,1740858648451,-500.0,0.00025205,2]
[354992025,1740858648469,-681.95,0.00025205,2]
[354992027,1740858648479,-825.78,0.00025205,2]
[354992029,1740858648488,-500.0,0.00025205,2]
[354992031,1740858648498,-500.0,0.00025205,2]
[354992033,1740858648507,-500.0,0.00025205,2]
[354992035,1740858648516,-800.67,0.00025205,2]
[354992037,1740858648526,-500.0,0.00025205,2]
[354992039,1740858648536,-759.89,0.00025205,2]
[354992041,1740858648546,-500.0,0.00025205,2]
[354992043,1740858648555,-1116.87,0.00025205,2]
[354992045,1740858648564,-500.0,0.00025205,2]
[354992047,1740858648574,-500.0,0.00025205,2]
[354992049,1740858648583,-601.24,0.00025205,2]
[354992051,1740858648592,-1481.3,0.00025205,2]
[354992053,1740858648602,-500.0,0.00025205,2]
[354992055,1740858648611,-500.0,0.00025205,2]
[354992057,1740858648620,-540.63,0.00025205,2]
[354992059,1740858648630,-500.0,0.00025205,2]
[354992061,1740858648640,-500.0,0.00025205,2]
[354992063,1740858648649,-802.35,0.00025205,2]
[354992065,1740858648658,-1400.57,0.00025205,2]
[354992067,1740858648667,-477.01924573,0.00025205,2]
[354992069,1740858648677,-500.0,0.00025205,2]
[354992071,1740858648686,-500.0,0.00025205,2]
[354992073,1740858648696,-1012.06,0.00025205,2]
[354992075,1740858648706,-644.02,0.00025205,2]
[354992077,1740858648716,-500.0,0.00025205,2]
[354992079,1740858648726,-500.0,0.00025205,2]
[354992081,1740858648736,-500.0,0.00025205,2]
[354992083,1740858648745,-559.57,0.00025205,2]
[354992085,1740858648755,-500.0,0.00025205,2]
[354992087,1740858648765,-500.0,0.00025205,2]
[354992089,1740858648774,-844.97,0.00025205,2]
[354992091,1740858648784,-500.0,0.00025205,2]
[354992093,1740858648794,-500.0,0.00025205,2]
[354992095,1740858648803,-574.28,0.00025205,2]
[354992097,1740858648813,-500.0,0.00025205,2]
[354992098,1740858648822,-761.24,0.00025205,2]
[354992099,1740858648831,-500.0,0.00025205,2]
[354992100,1740858648841,-582.36,0.00025205,2]
[354992101,1740858648850,-500.0,0.00025205,2]
[354992102,1740858648859,-500.0,0.00025205,2]
[354992103,1740858648868,-1023.73,0.00025205,2]
[354992104,1740858648878,-670.61,0.00025205,2]
[354992106,1740858648887,-12925.59,0.00025205,2]
[354992107,1740858648896,-500.0,0.00025205,2]
[354992109,1740858648906,-585.93,0.00025205,2]
[354992112,1740858648916,-24231.35,0.00025205,2]
[354992114,1740858648926,-500.0,0.00025205,2]
[354992116,1740858648935,-500.0,0.00025205,2]
[354992118,1740858648944,-500.0,0.00025205,2]
[354992120,1740858648954,-726.37,0.00025205,2]
[354992122,1740858648963,-1094.43,0.00025205,2]
[354992124,1740858648973,-500.0,0.00025205,2]
[354992126,1740858648983,-500.0,0.00025205,2]
[354992128,1740858648992,-5410.94,0.00025205,2]
[354992130,1740858649002,-500.0,0.00025205,2]
[354992131,1740858649011,-1790.44,0.00025205,2]
[354992133,1740858649021,-500.0,0.00025205,2]
[354992135,1740858649030,-657.95,0.00025205,2]
[354992137,1740858649040,-893.71,0.00025205,2]
[354992139,1740858649049,-3488.0,0.00025205,2]
[354992141,1740858649058,-500.0,0.00025205,2]
[354992143,1740858649068,-500.0,0.00025205,2]
[354992145,1740858649077,-500.0,0.00025205,2]
[354992147,1740858649087,-9463.4,0.00025205,2]
[354992150,1740858649096,-1420.73,0.00025205,2]
[354992151,1740858649106,-500.0,0.00025205,2]
[354992154,1740858649115,-602.93,0.00025205,2]
[354992156,1740858649125,-1402.25,0.00025205,2]
[354992158,1740858649135,-500.0,0.00025205,2]
[354992160,1740858649146,-500.0,0.00025205,2]
[354992162,1740858649155,-500.0,0.00025205,2]
[354992164,1740858649165,-5237.63,0.00025205,2]
[354992166,1740858649174,-899.3,0.00025205,2]
[354992168,1740858649184,-970.83,0.00025205,2]
[354992170,1740858649193,-2449.77,0.00025205,2]
[354992172,1740858649203,-500.0,0.00025205,2]
[354992174,1740858649212,-500.0,0.00025205,2]
[354992176,1740858649225,-4396.77,0.00025205,2]
[354992178,1740858649234,-3112.68,0.00025205,2]
[354992180,1740858649243,-1000.0,0.00025205,5]
[354992182,1740858649254,-500.0,0.00025205,2]
[354992184,1740858649264,-500.0,0.00025205,2]
[354992186,1740858649274,-4340.96,0.00025205,2]
[354992188,1740858649284,-500.0,0.00025205,2]
[354992190,1740858649293,-1088.39,0.00025205,2]
[354992192,1740858649304,-2525.31,0.00025205,2]
[354992194,1740858649313,-7864.25,0.00025205,2]
[354992195,1740858649323,-1037.02,0.00025205,2]
[354992198,1740858649332,-500.0,0.00025205,2]
[354992200,1740858649343,-703.67,0.00025205,2]
[354992202,1740858649353,-500.0,0.00025205,2]
[354992204,1740858649363,-2714.35,0.00025205,2]
[354992206,1740858649372,-762.63,0.00025205,2]
[354992208,1740858649382,-500.0,0.00025205,2]
[354992210,1740858649392,-651.29,0.00025205,2]
[354992211,1740858649402,-1430.03,0.00025205,2]
[354992213,1740858649411,-500.0,0.00025205,2]
[354992215,1740858649420,-732.12,0.00025205,2]
[354992217,1740858649430,-7347.84,0.00025205,2]
[354992219,1740858649439,-500.0,0.00025205,2]
[354992221,1740858649449,-528.54,0.00025205,2]
[354992223,1740858649459,-602.49,0.00025205,2]
[354992226,1740858649468,-1910.7,0.00025205,2]
[354992228,1740858649478,-651.81,0.00025205,2]
[354992230,1740858649487,-500.0,0.00025205,2]
[354992232,1740858649497,-145114.8,0.00025205,2]
[354992233,1740858649507,-500.0,0.00025205,2]
[354992236,1740858649516,-2835.51,0.00025205,2]
[354992238,1740858649526,-1053.43,0.00025205,2]
[354992240,1740858649536,-500.0,0.00025205,2]
[354992242,1740858649546,-500.0,0.00025205,2]
[354992244,1740858649555,-500.0,0.00025205,2]
[354992246,1740858649564,-1191.33,0.00025205,2]
[354992248,1740858649574,-1513.15,0.00025205,2]
[354992250,1740858649583,-2839.02,0.00025205,2]
[354992252,1740858649593,-500.0,0.00025205,2]
[354992254,1740858649603,-500.0,0.00025205,2]
[354992256,1740858649612,-1637.74,0.00025205,2]
[354992258,1740858649621,-270.31100438,0.00025205,2]
[354992260,1740858649631,-500.0,0.00025205,2]
[354992262,1740858649641,-1631.75,0.00025205,2]
[354992264,1740858649651,-614.9,0.00025205,2]
[354992266,1740858649661,-3677.1,0.00025205,2]
[354992268,1740858649670,-500.0,0.00025205,2]
[354992270,1740858649680,-500.0,0.00025205,2]
[354992272,1740858649690,-3517.56,0.00025205,2]
[354992274,1740858649699,-1467.3,0.00025205,2]
[354992276,1740858649709,-1086.1,0.00025205,2]
[354992278,1740858649719,-166.1,0.00025227,2]
[354992280,1740858649729,-500.0,0.00025241,2]
[354992282,1740858649739,-13682.53,0.00025241,2]
[354992284,1740858649748,-1234.23,0.00025241,2]
[354992286,1740858649758,-157.7541248,0.0002526,2]
[354992288,1740858649767,-500.0,0.00025273,2]
[354992290,1740858649778,-500.0,0.00025273,2]
[354992292,1740858649788,-511.26437518,0.00025273,2]
[354992294,1740858649798,-500.0,0.00025273,2]
[354992296,1740858649808,-503.88447595,0.00025273,2]
[354992298,1740858649818,-500.0,0.00025273,2]
[354992300,1740858649828,-500.0,0.00025273,2]
[354992302,1740858649839,-500.0,0.00025273,2]
[354992304,1740858649849,-500.0,0.00025273,2]
[354992306,1740858649859,-500.0,0.00025273,2]
[354992308,1740858649870,-500.0,0.00025273,2]
[354992310,1740858649880,-500.0,0.00025273,2]
[354992312,1740858649890,-500.0,0.00025273,2]
[354992314,1740858649900,-500.0,0.00025273,2]
[354992316,1740858649910,-509.92537316,0.00025273,2]
[354992319,1740858649919,-500.0,0.00025273,2]
[354992321,1740858649929,-500.0,0.00025273,2]
[354992323,1740858649939,-500.0,0.00025273,2]
[354992325,1740858649949,-500.0,0.00025273,2]
[354992327,1740858649959,-299.45155416,0.00025273,2]
[354992329,1740858649969,-500.0,0.00025273,2]
[354992331,1740858649978,-500.0,0.00025273,2]
[354992332,1740858649988,-687.34,0.00025341,2]
[354992335,1740858650004,-500.0,0.00025341,2]
[354992337,1740858650014,-500.0,0.00025341,2]
[354992339,1740858650024,-500.0,0.00025341,2]
[354992341,1740858650033,-500.0,0.00025341,2]
[354992343,1740858650043,-552.31012193,0.00025341,2]
[354992345,1740858650053,-500.0,0.00025341,2]
[354992347,1740858650063,-500.0,0.00025341,2]
[354992349,1740858650073,-805.18,0.00025341,2]
[354992351,1740858650083,-500.0,0.00025341,2]
[354992353,1740858650093,-202.89545868,0.00025341,2]
[354992355,1740858650102,-500.0,0.00025341,2]
[354992357,1740858650112,-511.17,0.00025341,2]
[354992359,1740858650122,-500.0,0.00025341,2]
[354992361,1740858650131,-918.32,0.00025341,2]
[354992363,1740858650140,-500.0,0.00025341,2]
[354992365,1740858650150,-500.0,0.00025341,2]
[354992367,1740858650161,-500.0,0.00025341,2]
[354992369,1740858650170,-500.0,0.00025341,2]
[354992371,1740858650180,-500.0,0.00025341,2]
[354992373,1740858650190,-500.0,0.00025341,2]
[354992375,1740858650200,-500.0,0.00025341,2]
[354992377,1740858650210,-500.0,0.00025341,2]
[354992379,1740858650219,-500.0,0.00025341,2]
[354992381,1740858650231,-541.24,0.00025341,2]
[354992383,1740858650241,-695.72,0.00025341,2]
[354992385,1740858650251,-500.0,0.00025341,2]
[354992387,1740858650260,-947.0,0.00025341,2]
[354992389,1740858650270,-500.0,0.00025341,2]
[354992391,1740858650280,-588.4,0.00025341,2]
[354992393,1740858650290,-851.85,0.00025341,2]
[354992395,1740858650300,-872.39,0.00025341,2]
[354992397,1740858650309,-500.0,0.00025341,2]
[354992400,1740858650319,-1385.04,0.00025341,2]
[354992402,1740858650330,-500.0,0.00025341,2]
[354992404,1740858650339,-500.0,0.00025341,2]
[354992406,1740858650349,-1229.21,0.00025341,2]
[354992408,1740858650359,-500.0,0.00025341,2]
[354992410,1740858650368,-814.39,0.00025341,2]
[354992412,1740858650378,-500.0,0.00025341,2]
[354992414,1740858650387,-1172.15,0.00025341,2]
[354992416,1740858650397,-500.0,0.00025341,2]
[354992418,1740858650407,-587.83,0.00025341,2]
[354992420,1740858650416,-500.0,0.00025341,2]
[354992422,1740858650425,-500.0,0.00025341,2]
[354992424,1740858650435,-901.51,0.00025341,2]
[354992426,1740858650444,-500.0,0.00025341,2]
[354992428,1740858650454,-500.0,0.00025341,2]
[354992430,1740858650464,-500.0,0.00025341,2]
[354992432,1740858650473,-536.81,0.00025341,2]
[354992434,1740858650483,-500.0,0.00025341,2]
[354992436,1740858650493,-500.0,0.00025341,2]
[354992438,1740858650503,-963.78,0.00025341,2]
[354992440,1740858650513,-975.4,0.00025341,2]
[354992443,1740858650523,-500.0,0.00025341,2]
[354992444,1740858650532,-500.0,0.00025341,2]
[354992447,1740858650543,-500.0,0.00025341,2]
[354992449,1740858650552,-2108.74,0.00025341,2]
[354992451,1740858650562,-500.0,0.00025341,2]
[354992453,1740858650571,-500.0,0.00025341,2]
[354992455,1740858650581,-500.0,0.00025341,2]
[354992457,1740858650591,-1421.5,0.00025341,2]
[354992459,1740858650601,-500.0,0.00025341,2]
[354992461,1740858650611,-1612.04,0.00025341,2]
[354992463,1740858650620,-651.14,0.00025341,2]
[354992465,1740858650630,-500.0,0.00025341,2]
[354992467,1740858650639,-500.0,0.00025341,2]
[354992469,1740858650649,-500.0,0.00025341,2]
[354992471,1740858650658,-500.0,0.00025341,2]
[354992473,1740858650669,-769.69,0.00025341,2]
[354992475,1740858650679,-500.0,0.00025341,2]
[354992478,1740858650688,-500.0,0.00025341,2]
[354992480,1740858650698,-500.0,0.00025341,2]
[354992482,1740858650708,-325.49036446,0.00025341,2]
[354992484,1740858650717,-1982.33,0.00025341,2]
[354992486,1740858650727,-549.29,0.00025341,2]
[354992488,1740858650737,-500.0,0.00025341,2]
[354992490,1740858650746,-500.0,0.00025341,2]
[354992492,1740858650756,-500.0,0.00025341,2]
[354992494,1740858650766,-500.0,0.00025341,2]
[354992496,1740858650775,-500.0,0.00025341,2]
[354992498,1740858650785,-666.88,0.00025341,2]
[354992500,1740858650795,-500.0,0.00025341,2]
[354992502,1740858650804,-641.19,0.00025341,2]
[354992504,1740858650813,-500.0,0.00025341,2]
[354992506,1740858650823,-500.0,0.00025341,2]
[354992508,1740858650832,-708.0,0.00025341,2]
[354992510,1740858650841,-500.0,0.00025341,2]
[354992512,1740858650851,-572.68,0.00025341,2]
[354992515,1740858650861,-521.68,0.00025341,2]
[354992517,1740858650871,-617.2,0.00025341,2]
[354992519,1740858650880,-803.1,0.00025341,2]
[354992521,1740858650890,-1057.58,0.00025341,2]
[354992523,1740858650899,-500.0,0.00025341,2]
[354992525,1740858650908,-1355.33,0.00025341,2]
[354992527,1740858650918,-500.0,0.00025341,2]
[354992529,1740858650928,-500.0,0.00025341,2]
[354992531,1740858650937,-3489.02,0.00025341,2]
[354992533,1740858650947,-784.69,0.00025341,2]
[354992535,1740858650957,-500.0,0.00025341,2]
[354992537,1740858650966,-976.41,0.00025341,2]
[354992539,1740858650976,-512.16,0.00025341,2]
[354992541,1740858650985,-500.0,0.00025341,2]
[354992543,1740858650995,-500.0,0.00025341,2]
[354992545,1740858651005,-500.0,0.00025341,2]
[354992548,1740858651015,-195.51698513,0.00025341,2]
[354992550,1740858651024,-500.0,0.00025341,2]
[354992552,1740858651034,-220.55185853,0.00025341,2]
[354992554,1740858651043,-500.0,0.00025341,2]
[354992556,1740858651053,-940.17,0.00025341,2]
[354992558,1740858651063,-1131.28,0.00025341,2]
[354992560,1740858651073,-500.0,0.00025341,2]
[354992562,1740858651082,-500.0,0.00025345,2]
[354992564,1740858651092,-500.0,0.00025345,2]
[354992566,1740858651101,-1001.65,0.00025345,2]
[354992568,1740858651111,-500.0,0.00025345,2]
[354992570,1740858651120,-500.0,0.00025345,2]
[354992572,1740858651130,-1940.07,0.00025345,2]
[354992574,1740858651140,-1053.94,0.00025345,2]
[354992576,1740858651149,-19624.61182001,0.00025446,7]
[354992578,1740858651159,-500.0,0.00025479,2]
[354992580,1740858651168,-500.0,0.00025479,2]
[354992582,1740858651178,-500.0,0.00025479,2]
[354992584,1740858651187,-500.0,0.00025479,2]
[354992587,1740858651199,-1356.93,0.00025479,2]
[354992589,1740858651209,-604.9,0.00025479,2]
[354992591,1740858651218,-500.0,0.00025479,2]
[354992593,1740858651230,-500.0,0.00025479,2]
[354992595,1740858651240,-1229.49,0.00025479,2]
[354992597,1740858651249,-500.0,0.00025479,2]
[354992599,1740858651259,-500.0,0.00025479,2]
[354992601,1740858651269,-500.0,0.00025479,2]
[354992603,1740858651278,-1294.44,0.00025479,2]
[354992629,1740858651494,-859.51,0.00025479,2]
[354992631,1740858651515,-875.13,0.00025479,2]
[354992633,1740858651524,-500.0,0.00025479,2]
[354992635,1740858651534,-814.68,0.00025479,2]
[354992638,1740858651543,-949.73,0.00025479,2]
[354992640,1740858651553,-1425.19,0.00025479,2]
[354992642,1740858651563,-872.86,0.00025479,2]
[354992644,1740858651572,-511.33,0.00025479,2]
[354992646,1740858651582,-500.0,0.00025479,2]
[354992648,1740858651592,-681.95,0.00025479,2]
[354992650,1740858651601,-825.78,0.00025479,2]
[354992652,1740858651610,-332.12047196,0.00025479,2]
[354992654,1740858651620,-500.0,0.00025479,2]
[354992656,1740858651629,-500.0,0.00025479,2]
[354992658,1740858651639,-800.67,0.00025479,2]
[354992660,1740858651648,-500.0,0.00025479,2]
[354992662,1740858651657,-759.89,0.00025479,2]
[354992664,1740858651667,-1116.87,0.00025479,2]
[354992666,1740858651676,-500.0,0.00025479,2]
[354992668,1740858651686,-601.24,0.00025479,2]
[354992670,1740858651695,-1481.3,0.00025479,2]
[354992672,1740858651705,-500.0,0.00025479,2]
[354992674,1740858651714,-500.0,0.00025479,2]
[354992676,1740858651723,-540.63,0.00025479,2]
[354992679,1740858651733,-500.0,0.00025479,2]
[354992681,1740858651742,-500.0,0.00025479,2]
[354992683,1740858651752,-802.35,0.00025479,2]
[354992685,1740858651762,-1400.57,0.00025479,2]
[354992687,1740858651772,-500.0,0.00025479,2]
[354992689,1740858651782,-500.0,0.00025479,2]
[354992691,1740858651792,-1012.06,0.00025479,2]
[354992693,1740858651801,-644.02,0.00025479,2]
[354992695,1740858651811,-500.0,0.00025479,2]
[354992697,1740858651821,-500.0,0.00025479,2]
[354992699,1740858651830,-559.57,0.00025479,2]